[Event "Titled Tuesday Blitz March 21 Late 2023"]
[White "Skaric, Djuro"]
[Black "Rottenwohrer Suarez, Juan"]
[WhiteFideId "934569"]
[BlackFideId "32068182"]
[WhiteElo "2282"]
[BlackElo "2174"]
[Result "0-1"]
[Round "05"]
[TimeControl "180+2"]
[Date "2023.03.21"]
[WhiteClock "0:01:22"]
[BlackClock "0:00:50"]

1. g3 {[%clk 0:02:56]}  Nf6 {[%clk 0:02:58]} 2. Bg2 {[%clk 0:02:57]}  g6 {[%clk 0:02:58]} 3. d3 {[%clk 0:02:57]}  Bg7 {[%clk 0:02:59]} 4. e4 {[%clk 0:02:58]}  c5 {[%clk 0:02:58]} 5. Nc3 {[%clk 0:02:58]}  O-O {[%clk 0:02:58]} 6. f4 {[%clk 0:02:58]}  Nc6 {[%clk 0:02:58]} 7. Nf3 {[%clk 0:02:59]}  Rb8 {[%clk 0:02:59]} 8. a4 {[%clk 0:02:55]}  d6 {[%clk 0:02:59]} 9. h3 {[%clk 0:02:53]}  a6 {[%clk 0:02:58]} 10. g4 {[%clk 0:02:51]}  b5 {[%clk 0:02:58]} 11. axb5 {[%clk 0:02:51]}  axb5 {[%clk 0:02:59]} 12. O-O {[%clk 0:02:51]}  Nd4 {[%clk 0:02:55]} 13. Nxd4 {[%clk 0:02:48]}  cxd4 {[%clk 0:02:56]} 14. Ne2 {[%clk 0:02:49]}  Nd7 {[%clk 0:02:55]} 15. Ng3 {[%clk 0:02:48]}  b4 {[%clk 0:02:53]} 16. b3 {[%clk 0:02:42]}  Bb7 {[%clk 0:02:52]} 17. Bb2 {[%clk 0:02:40]}  Rc8 {[%clk 0:02:52]} 18. Rf2 {[%clk 0:02:39]}  Qb6 {[%clk 0:02:41]} 19. g5 {[%clk 0:02:32]}  Ra8 {[%clk 0:02:40]} 20. Qd2 {[%clk 0:02:04]}  Rxa1+ {[%clk 0:02:38]} 21. Bxa1 {[%clk 0:02:03]}  Ra8 {[%clk 0:02:39]} 22. Rf1 {[%clk 0:02:00]}  Ra2 {[%clk 0:02:38]} 23. Qc1 {[%clk 0:01:55]}  Qc7 {[%clk 0:02:32]} 24. Rf2 {[%clk 0:01:54]}  Nc5 {[%clk 0:02:29]} 25. Qb1 {[%clk 0:01:53]}  Ra8 {[%clk 0:02:24]} 26. Bb2 {[%clk 0:01:51]}  Qa5 {[%clk 0:02:14]} 27. Ne2 {[%clk 0:01:49]}  Qa2 {[%clk 0:01:58]} 28. Qc1 {[%clk 0:01:48]}  e5 {[%clk 0:01:22]} 29. f5 {[%clk 0:01:47]}  Rc8 {[%clk 0:01:17]} 30. f6 {[%clk 0:01:39]}  Nxd3 {[%clk 0:01:14]} 31. cxd3 {[%clk 0:01:31]}  Rxc1+ {[%clk 0:01:13]} 32. Nxc1 {[%clk 0:01:28]}  Qb1 {[%clk 0:01:08]} 33. Bf3 {[%clk 0:01:23]}  Bf8 {[%clk 0:01:03]} 34. Bd1 {[%clk 0:01:22]}  d5 {[%clk 0:00:51]} 35. Bc2 {[%clk 0:01:22]}  Qxb2 {[%clk 0:00:50]} 0-1


[Site "https://www.chess.com"]

[Event "Titled Tuesday Blitz March 21 Late 2023"]
[White "Elaisaz"]
[Black "Szente Varga, Fruzsina"]
[BlackFideId "712264"]
[WhiteElo "2250"]
[BlackElo "1994"]
[Result "0-1"]
[Round "05"]
[TimeControl "180+2"]
[Date "2023.03.21"]
[WhiteClock "0:00:02"]
[BlackClock "0:00:15"]

1. e4 {[%clk 0:03:00]}  Nf6 {[%clk 0:03:00]} 2. d3 {[%clk 0:02:58]}  d5 {[%clk 0:03:00]} 3. e5 {[%clk 0:02:57]}  Nfd7 {[%clk 0:03:00]} 4. d4 {[%clk 0:02:57]}  e6 {[%clk 0:03:00]} 5. Nd2 {[%clk 0:02:54]}  c5 {[%clk 0:03:01]} 6. c3 {[%clk 0:02:54]}  Nc6 {[%clk 0:03:01]} 7. Ne2 {[%clk 0:02:44]}  Qb6 {[%clk 0:02:55]} 8. Nf3 {[%clk 0:02:33]}  Be7 {[%clk 0:02:46]} 9. g4 {[%clk 0:02:28]}  O-O {[%clk 0:02:05]} 10. Bg2 {[%clk 0:02:24]}  f6 {[%clk 0:02:00]} 11. exf6 {[%clk 0:02:16]}  Bxf6 {[%clk 0:02:01]} 12. dxc5 {[%clk 0:02:12]}  Nxc5 {[%clk 0:02:02]} 13. O-O {[%clk 0:02:09]}  Ne5 {[%clk 0:01:41]} 14. Nxe5 {[%clk 0:01:56]}  Bxe5 {[%clk 0:01:42]} 15. Nd4 {[%clk 0:01:56]}  Qc7 {[%clk 0:01:34]} 16. h3 {[%clk 0:01:25]}  Bd7 {[%clk 0:01:33]} 17. Qd2 {[%clk 0:01:18]}  Bh2+ {[%clk 0:00:53]} 18. Kh1 {[%clk 0:01:17]}  Bf4 {[%clk 0:00:54]} 19. Qe2 {[%clk 0:01:14]}  Rae8 {[%clk 0:00:36]} 20. Bxf4 {[%clk 0:00:50]}  Qxf4 {[%clk 0:00:37]} 21. Rae1 {[%clk 0:00:50]}  Kh8 {[%clk 0:00:35]} 22. Nf3 {[%clk 0:00:36]}  Ne4 {[%clk 0:00:33]} 23. Nd4 {[%clk 0:00:24]}  Ng5 {[%clk 0:00:25]} 24. Qe5 {[%clk 0:00:16]}  Qxe5 {[%clk 0:00:10]} 25. Rxe5 {[%clk 0:00:16]}  Nf7 {[%clk 0:00:11]} 26. Re2 {[%clk 0:00:15]}  e5 {[%clk 0:00:12]} 27. Nf5 {[%clk 0:00:12]}  Bb5 {[%clk 0:00:12]} 28. Rfe1 {[%clk 0:00:09]}  Bxe2 {[%clk 0:00:12]} 29. Rxe2 {[%clk 0:00:09]}  e4 {[%clk 0:00:13]} 30. Nd4 {[%clk 0:00:06]}  Ne5 {[%clk 0:00:13]} 31. b3 {[%clk 0:00:05]}  Nd3 {[%clk 0:00:14]} 32. c4 {[%clk 0:00:04]}  Nf4 {[%clk 0:00:14]} 33. Re1 {[%clk 0:00:04]}  Nxg2 {[%clk 0:00:15]} 34. Kxg2 {[%clk 0:00:04]}  dxc4 {[%clk 0:00:15]} 35. bxc4 {[%clk 0:00:04]}  Rf7 {[%clk 0:00:16]} 36. Nf5 {[%clk 0:00:04]}  Rd7 {[%clk 0:00:15]} 37. f3 {[%clk 0:00:01]}  exf3+ {[%clk 0:00:15]} 38. Kf2 {[%clk 0:00:02]}  Rd2+ {[%clk 0:00:15]} 0-1


[Site "https://www.chess.com"]

[Event "Titled Tuesday Blitz March 21 Late 2023"]
[White "Rios Escobar, Adan"]
[Black "Ardila, Oscar Humberto"]
[WhiteFideId "3403645"]
[BlackFideId "4404742"]
[WhiteElo "2399"]
[BlackElo "1911"]
[Result "1-0"]
[Round "05"]
[TimeControl "180+2"]
[Date "2023.03.21"]
[WhiteClock "0:00:06"]
[BlackClock "0:00:06"]

1. d4 {[%clk 0:02:54]}  Nf6 {[%clk 0:02:59]} 2. g3 {[%clk 0:02:54]}  g6 {[%clk 0:02:57]} 3. Bg2 {[%clk 0:02:54]}  Bg7 {[%clk 0:02:58]} 4. e4 {[%clk 0:02:55]}  d6 {[%clk 0:02:57]} 5. Ne2 {[%clk 0:02:55]}  O-O {[%clk 0:02:57]} 6. O-O {[%clk 0:02:56]}  Nbd7 {[%clk 0:02:57]} 7. Nbc3 {[%clk 0:02:56]}  e5 {[%clk 0:02:57]} 8. h3 {[%clk 0:02:56]}  exd4 {[%clk 0:02:56]} 9. Nxd4 {[%clk 0:02:55]}  Re8 {[%clk 0:02:56]} 10. Re1 {[%clk 0:02:55]}  Nc5 {[%clk 0:02:55]} 11. Bf4 {[%clk 0:02:54]}  Ne6 {[%clk 0:02:54]} 12. Nxe6 {[%clk 0:02:51]}  Bxe6 {[%clk 0:02:54]} 13. a4 {[%clk 0:02:50]}  Nh5 {[%clk 0:02:50]} 14. Be3 {[%clk 0:02:42]}  Nf6 {[%clk 0:02:28]} 15. Qd2 {[%clk 0:02:40]}  Nd7 {[%clk 0:02:26]} 16. a5 {[%clk 0:02:37]}  a6 {[%clk 0:02:26]} 17. f4 {[%clk 0:02:29]}  Nc5 {[%clk 0:02:15]} 18. e5 {[%clk 0:02:22]}  Qe7 {[%clk 0:01:52]} 19. exd6 {[%clk 0:02:16]}  cxd6 {[%clk 0:01:52]} 20. Rad1 {[%clk 0:02:11]}  Rad8 {[%clk 0:01:41]} 21. b4 {[%clk 0:02:09]}  Nd7 {[%clk 0:01:31]} 22. Nd5 {[%clk 0:01:59]}  Qf8 {[%clk 0:01:15]} 23. Nc7 {[%clk 0:01:48]}  Re7 {[%clk 0:01:11]} 24. Qxd6 {[%clk 0:01:40]}  Bf5 {[%clk 0:01:00]} 25. Bxb7 {[%clk 0:00:59]}  Bxh3 {[%clk 0:00:58]} 26. Nd5 {[%clk 0:00:40]}  Re6 {[%clk 0:00:50]} 27. Qxf8+ {[%clk 0:00:36]}  Bxf8 {[%clk 0:00:45]} 28. c4 {[%clk 0:00:29]}  Rb8 {[%clk 0:00:39]} 29. Nc7 {[%clk 0:00:12]}  Rxb7 {[%clk 0:00:31]} 30. Nxe6 {[%clk 0:00:12]}  Bxe6 {[%clk 0:00:30]} 31. b5 {[%clk 0:00:08]}  axb5 {[%clk 0:00:28]} 32. cxb5 {[%clk 0:00:08]}  Rxb5 {[%clk 0:00:28]} 33. a6 {[%clk 0:00:09]}  Bc5 {[%clk 0:00:19]} 34. Bxc5 {[%clk 0:00:08]}  Nxc5 {[%clk 0:00:19]} 35. a7 {[%clk 0:00:06]}  Ra5 {[%clk 0:00:19]} 36. Rd8+ {[%clk 0:00:05]}  Kg7 {[%clk 0:00:18]} 37. a8=Q {[%clk 0:00:05]}  Rxa8 {[%clk 0:00:18]} 38. Rxa8 {[%clk 0:00:06]}  Nd3 {[%clk 0:00:19]} 39. Rd1 {[%clk 0:00:04]}  Nc5 {[%clk 0:00:18]} 40. Ra7 {[%clk 0:00:05]}  Ne4 {[%clk 0:00:17]} 41. Re1 {[%clk 0:00:05]}  Nc5 {[%clk 0:00:17]} 42. Re5 {[%clk 0:00:05]}  Nd3 {[%clk 0:00:09]} 43. Rxe6 {[%clk 0:00:05]}  Kh6 {[%clk 0:00:09]} 44. Rxf7 {[%clk 0:00:04]}  Kh5 {[%clk 0:00:10]} 45. Rxh7+ {[%clk 0:00:04]}  Kg4 {[%clk 0:00:10]} 46. Rxg6+ {[%clk 0:00:04]}  Kf3 {[%clk 0:00:10]} 47. f5 {[%clk 0:00:05]}  Ne5 {[%clk 0:00:10]} 48. Rf6 {[%clk 0:00:05]}  Ng4 {[%clk 0:00:10]} 49. Rf8 {[%clk 0:00:05]}  Ne3 {[%clk 0:00:07]} 50. f6 {[%clk 0:00:06]}  Ng4 {[%clk 0:00:06]} 51. f7 {[%clk 0:00:06]}  Nf2 {[%clk 0:00:07]} 52. Re8 {[%clk 0:00:06]}  Ng4 {[%clk 0:00:06]} 53. f8=Q+ {[%clk 0:00:06]} 1-0


[Site "https://www.chess.com"]

[Event "Titled Tuesday Blitz March 21 Late 2023"]
[White "Davidson, Kevin"]
[Black "Vadim_Galchenko"]
[WhiteFideId "2056810"]
[WhiteElo "2151"]
[BlackElo "2169"]
[Result "0-1"]
[Round "05"]
[TimeControl "180+2"]
[Date "2023.03.21"]
[WhiteClock "0:00:01"]
[BlackClock "0:00:09"]

1. e4 {[%clk 0:02:58]}  e6 {[%clk 0:03:00]} 2. d4 {[%clk 0:02:37]}  d5 {[%clk 0:03:00]} 3. Nc3 {[%clk 0:02:37]}  Nf6 {[%clk 0:02:59]} 4. Bg5 {[%clk 0:02:36]}  Bb4 {[%clk 0:02:59]} 5. e5 {[%clk 0:02:36]}  h6 {[%clk 0:02:59]} 6. Be3 {[%clk 0:02:37]}  Ne4 {[%clk 0:02:58]} 7. Qg4 {[%clk 0:02:37]}  g6 {[%clk 0:02:56]} 8. a3 {[%clk 0:02:36]}  Bxc3+ {[%clk 0:02:46]} 9. bxc3 {[%clk 0:02:36]}  Nxc3 {[%clk 0:02:47]} 10. Bd3 {[%clk 0:02:32]}  Qd7 {[%clk 0:02:33]} 11. Nf3 {[%clk 0:02:14]}  b6 {[%clk 0:02:27]} 12. O-O {[%clk 0:02:00]}  Ba6 {[%clk 0:02:25]} 13. Bxa6 {[%clk 0:01:57]}  Nxa6 {[%clk 0:02:26]} 14. Rfe1 {[%clk 0:01:48]}  c5 {[%clk 0:02:14]} 15. h4 {[%clk 0:01:26]}  c4 {[%clk 0:02:03]} 16. h5 {[%clk 0:01:23]}  g5 {[%clk 0:02:03]} 17. Nh2 {[%clk 0:01:18]}  O-O-O {[%clk 0:01:59]} 18. Qf3 {[%clk 0:01:15]}  Ne4 {[%clk 0:01:53]} 19. Ng4 {[%clk 0:01:13]}  Qe7 {[%clk 0:01:46]} 20. Bc1 {[%clk 0:00:49]}  b5 {[%clk 0:01:43]} 21. Rxe4 {[%clk 0:00:29]}  dxe4 {[%clk 0:01:44]} 22. Qxe4 {[%clk 0:00:30]}  Qb7 {[%clk 0:01:41]} 23. Qe3 {[%clk 0:00:27]}  Nc7 {[%clk 0:01:41]} 24. Bd2 {[%clk 0:00:17]}  Nd5 {[%clk 0:01:40]} 25. Qf3 {[%clk 0:00:17]}  Rd7 {[%clk 0:01:37]} 26. Rb1 {[%clk 0:00:14]}  a6 {[%clk 0:01:36]} 27. Kh2 {[%clk 0:00:11]}  Kb8 {[%clk 0:01:25]} 28. g3 {[%clk 0:00:11]}  c3 {[%clk 0:01:17]} 29. Bxc3 {[%clk 0:00:11]}  Rc7 {[%clk 0:01:10]} 30. Rb3 {[%clk 0:00:10]}  Qc8 {[%clk 0:00:43]} 31. Ba5 {[%clk 0:00:06]}  Rxc2 {[%clk 0:00:44]} 32. Nf6 {[%clk 0:00:06]}  Qc6 {[%clk 0:00:37]} 33. Nxd5 {[%clk 0:00:05]}  Qxd5 {[%clk 0:00:38]} 34. Qxd5 {[%clk 0:00:05]}  exd5 {[%clk 0:00:38]} 35. Kg2 {[%clk 0:00:05]}  g4 {[%clk 0:00:36]} 36. Bb4 {[%clk 0:00:04]}  Rhc8 {[%clk 0:00:35]} 37. Bc5 {[%clk 0:00:04]}  Kb7 {[%clk 0:00:35]} 38. Re3 {[%clk 0:00:03]}  Re8 {[%clk 0:00:34]} 39. Kg1 {[%clk 0:00:03]}  a5 {[%clk 0:00:33]} 40. f3 {[%clk 0:00:03]}  Rg8 {[%clk 0:00:32]} 41. f4 {[%clk 0:00:02]}  Re8 {[%clk 0:00:23]} 42. f5 {[%clk 0:00:02]}  Kc6 {[%clk 0:00:10]} 43. e6 {[%clk 0:00:03]}  fxe6 {[%clk 0:00:10]} 44. f6 {[%clk 0:00:03]}  Rxc5 {[%clk 0:00:10]} 45. dxc5 {[%clk 0:00:03]}  Kxc5 {[%clk 0:00:11]} 46. Re5 {[%clk 0:00:02]}  Kd6 {[%clk 0:00:10]} 47. Re3 {[%clk 0:00:02]}  e5 {[%clk 0:00:11]} 48. Rb3 {[%clk 0:00:02]}  Kc5 {[%clk 0:00:09]} 49. Kf2 {[%clk 0:00:01]}  b4 {[%clk 0:00:08]} 50. axb4+ {[%clk 0:00:01]}  axb4 {[%clk 0:00:09]} 51. Re3 {[%clk 0:00:01]}  e4 {[%clk 0:00:09]} 52. Rb3 {[%clk 0:00:01]}  d4 {[%clk 0:00:09]} 53. Rb1 {[%clk 0:00:01]}  Rf8 {[%clk 0:00:09]} 54. Ke2 {[%clk 0:00:01]}  Rxf6 {[%clk 0:00:09]} 55. Rc1+ {[%clk 0:00:01]}  Kd5 {[%clk 0:00:09]} 56. Ra1 {[%clk 0:00:01]}  d3+ {[%clk 0:00:09]} 0-1


[Site "https://www.chess.com"]

[Event "Titled Tuesday Blitz March 21 Late 2023"]
[White "Hon, Eric"]
[Black "Toktomushev, Teimur"]
[WhiteFideId "2097117"]
[BlackFideId "14176726"]
[WhiteElo "1918"]
[BlackElo "2116"]
[Result "0-1"]
[Round "05"]
[TimeControl "180+2"]
[Date "2023.03.21"]
[WhiteClock "0:01:33"]
[BlackClock "0:00:28"]

1. e4 {[%clk 0:03:00]}  c5 {[%clk 0:03:00]} 2. Nf3 {[%clk 0:02:55]}  e6 {[%clk 0:02:59]} 3. d4 {[%clk 0:02:55]}  cxd4 {[%clk 0:03:00]} 4. Nxd4 {[%clk 0:02:54]}  a6 {[%clk 0:03:00]} 5. Nc3 {[%clk 0:02:44]}  b5 {[%clk 0:03:00]} 6. a4 {[%clk 0:02:44]}  b4 {[%clk 0:02:58]} 7. Nce2 {[%clk 0:02:44]}  Bb7 {[%clk 0:02:58]} 8. f3 {[%clk 0:02:45]}  Nc6 {[%clk 0:02:56]} 9. Be3 {[%clk 0:02:45]}  Nf6 {[%clk 0:02:34]} 10. Qd2 {[%clk 0:02:43]}  Qc7 {[%clk 0:02:21]} 11. g3 {[%clk 0:02:36]}  d5 {[%clk 0:02:11]} 12. Nxc6 {[%clk 0:02:30]}  Bxc6 {[%clk 0:02:11]} 13. exd5 {[%clk 0:02:26]}  Nxd5 {[%clk 0:02:06]} 14. Nd4 {[%clk 0:02:19]}  Rd8 {[%clk 0:01:10]} 15. O-O-O {[%clk 0:02:09]}  Nxe3 {[%clk 0:00:56]} 16. Qxe3 {[%clk 0:02:08]}  Bc5 {[%clk 0:00:55]} 17. c3 {[%clk 0:01:52]}  O-O {[%clk 0:00:42]} 18. Kc2 {[%clk 0:01:44]}  bxc3 {[%clk 0:00:31]} 19. Qxc3 {[%clk 0:01:33]}  Bxd4 {[%clk 0:00:27]} 20. Rxd4 {[%clk 0:01:32]}  Rxd4 {[%clk 0:00:28]} 21. Qxd4 {[%clk 0:01:33]}  Bxf3+ {[%clk 0:00:28]} 0-1


[Site "https://www.chess.com"]

[Event "Titled Tuesday Blitz March 21 Late 2023"]
[White "Bongo Akanga Ndjila, Barthelemy"]
[Black "ArtemDyachuk"]
[WhiteFideId "10609431"]
[WhiteElo "1768"]
[BlackElo "2362"]
[Result "1-0"]
[Round "05"]
[TimeControl "180+2"]
[Date "2023.03.21"]
[WhiteClock "0:00:45"]
[BlackClock "0:00:01"]

1. d4 {[%clk 0:02:47]}  Nf6 {[%clk 0:02:57]} 2. c4 {[%clk 0:02:45]}  c5 {[%clk 0:02:55]} 3. d5 {[%clk 0:02:44]}  e6 {[%clk 0:02:55]} 4. Nc3 {[%clk 0:02:42]}  exd5 {[%clk 0:02:56]} 5. cxd5 {[%clk 0:02:43]}  d6 {[%clk 0:02:55]} 6. Nf3 {[%clk 0:02:42]}  g6 {[%clk 0:02:55]} 7. Bf4 {[%clk 0:02:43]}  Bg7 {[%clk 0:02:54]} 8. h3 {[%clk 0:02:43]}  O-O {[%clk 0:02:54]} 9. e3 {[%clk 0:02:44]}  Re8 {[%clk 0:02:53]} 10. Be2 {[%clk 0:02:42]}  Ne4 {[%clk 0:02:52]} 11. Rc1 {[%clk 0:02:36]}  Nd7 {[%clk 0:02:28]} 12. Nxe4 {[%clk 0:02:26]}  Rxe4 {[%clk 0:02:28]} 13. Bd3 {[%clk 0:02:21]}  Re8 {[%clk 0:02:25]} 14. b3 {[%clk 0:02:18]}  b5 {[%clk 0:02:18]} 15. Bxd6 {[%clk 0:02:15]}  Qb6 {[%clk 0:02:05]} 16. Bg3 {[%clk 0:02:11]}  Bb7 {[%clk 0:02:05]} 17. Be2 {[%clk 0:02:08]}  Rad8 {[%clk 0:01:59]} 18. O-O {[%clk 0:02:07]}  Ne5 {[%clk 0:01:59]} 19. e4 {[%clk 0:01:57]}  f5 {[%clk 0:01:44]} 20. Nxe5 {[%clk 0:01:53]}  Bxe5 {[%clk 0:01:43]} 21. Bxe5 {[%clk 0:01:44]}  Rxe5 {[%clk 0:01:44]} 22. Qd3 {[%clk 0:01:36]}  fxe4 {[%clk 0:01:30]} 23. Qxb5 {[%clk 0:01:35]}  Bxd5 {[%clk 0:01:23]} 24. Qxc5 {[%clk 0:01:29]}  Qf6 {[%clk 0:01:16]} 25. Qxa7 {[%clk 0:01:24]}  Be6 {[%clk 0:00:23]} 26. Bc4 {[%clk 0:01:20]}  Rd2 {[%clk 0:00:08]} 27. a4 {[%clk 0:01:12]}  Qg5 {[%clk 0:00:01]} 28. Bxe6+ {[%clk 0:01:05]}  Rxe6 {[%clk 0:00:02]} 29. Qb8+ {[%clk 0:01:00]}  Rd8 {[%clk 0:00:02]} 30. Qb4 {[%clk 0:00:59]}  e3 {[%clk 0:00:02]} 31. fxe3 {[%clk 0:00:57]}  Qxe3+ {[%clk 0:00:03]} 32. Kh1 {[%clk 0:00:57]}  Qe2 {[%clk 0:00:02]} 33. Rce1 {[%clk 0:00:55]}  Qd3 {[%clk 0:00:01]} 34. Qh4 {[%clk 0:00:45]} 1-0


[Site "https://www.chess.com"]

[Event "Titled Tuesday Blitz March 21 Late 2023"]
[White "salgadoLO"]
[Black "Quinones Garcia, Santiago"]
[BlackFideId "4408497"]
[WhiteElo "2183"]
[BlackElo "2263"]
[Result "0-1"]
[Round "05"]
[TimeControl "180+2"]
[Date "2023.03.21"]
[WhiteClock "0:00:01"]
[BlackClock "0:01:20"]

1. d4 {[%clk 0:03:00]}  Nf6 {[%clk 0:02:57]} 2. Bg5 {[%clk 0:03:00]}  Ne4 {[%clk 0:02:56]} 3. Bh4 {[%clk 0:03:00]}  d5 {[%clk 0:02:56]} 4. f3 {[%clk 0:02:57]}  Nf6 {[%clk 0:02:56]} 5. Nc3 {[%clk 0:02:57]}  g6 {[%clk 0:02:56]} 6. e4 {[%clk 0:02:54]}  dxe4 {[%clk 0:02:56]} 7. fxe4 {[%clk 0:02:55]}  Bg7 {[%clk 0:02:56]} 8. e5 {[%clk 0:02:35]}  Nd5 {[%clk 0:02:55]} 9. Nf3 {[%clk 0:02:33]}  Nc6 {[%clk 0:02:51]} 10. Bc4 {[%clk 0:02:22]}  Ne3 {[%clk 0:02:50]} 11. Qe2 {[%clk 0:02:16]}  Nxd4 {[%clk 0:02:39]} 12. Nxd4 {[%clk 0:01:50]}  Qxd4 {[%clk 0:02:38]} 13. Bf2 {[%clk 0:01:36]}  Nxc2+ {[%clk 0:02:29]} 14. Kf1 {[%clk 0:01:08]}  Bg4 {[%clk 0:02:18]} 15. Bxd4 {[%clk 0:00:46]}  Bxe2+ {[%clk 0:02:18]} 16. Nxe2 {[%clk 0:00:30]}  Nxa1 {[%clk 0:02:18]} 17. Bb5+ {[%clk 0:00:15]}  c6 {[%clk 0:02:18]} 18. Ba4 {[%clk 0:00:15]}  b5 {[%clk 0:02:15]} 19. Bd1 {[%clk 0:00:14]}  c5 {[%clk 0:02:06]} 20. Bxc5 {[%clk 0:00:12]}  Bxe5 {[%clk 0:02:05]} 21. b4 {[%clk 0:00:10]}  O-O {[%clk 0:02:04]} 22. Kf2 {[%clk 0:00:10]}  Rfd8 {[%clk 0:02:01]} 23. h4 {[%clk 0:00:09]}  Rd2 {[%clk 0:02:01]} 24. Bxe7 {[%clk 0:00:08]}  Re8 {[%clk 0:02:00]} 25. Bg5 {[%clk 0:00:07]}  Rxa2 {[%clk 0:01:58]} 26. h5 {[%clk 0:00:07]}  Nc2 {[%clk 0:01:53]} 27. hxg6 {[%clk 0:00:07]}  fxg6 {[%clk 0:01:52]} 28. Kf3 {[%clk 0:00:05]}  Nxb4 {[%clk 0:01:50]} 29. Bb3+ {[%clk 0:00:04]}  Kh8 {[%clk 0:01:50]} 30. Bxa2 {[%clk 0:00:05]}  Nxa2 {[%clk 0:01:51]} 31. Nf4 {[%clk 0:00:05]}  Bxf4 {[%clk 0:01:45]} 32. Kxf4 {[%clk 0:00:05]}  Nc3 {[%clk 0:01:46]} 33. Bf6+ {[%clk 0:00:05]}  Kg8 {[%clk 0:01:46]} 34. Bxc3 {[%clk 0:00:05]}  Rc8 {[%clk 0:01:43]} 35. Be5 {[%clk 0:00:04]}  a5 {[%clk 0:01:42]} 36. Rd1 {[%clk 0:00:05]}  b4 {[%clk 0:01:32]} 37. Rd7 {[%clk 0:00:05]}  Rc4+ {[%clk 0:01:27]} 38. Kg5 {[%clk 0:00:05]}  b3 {[%clk 0:01:26]} 39. Rg7+ {[%clk 0:00:03]}  Kf8 {[%clk 0:01:26]} 40. Rb7 {[%clk 0:00:02]}  a4 {[%clk 0:01:23]} 41. Kf6 {[%clk 0:00:02]}  Rc6+ {[%clk 0:01:23]} 42. Kg5 {[%clk 0:00:02]}  Re6 {[%clk 0:01:23]} 43. Bf6 {[%clk 0:00:02]}  Ra6 {[%clk 0:01:21]} 44. Rb4 {[%clk 0:00:01]}  Kf7 {[%clk 0:01:20]} 45. Rb7+ {[%clk 0:00:01]}  Ke6 {[%clk 0:01:20]} 0-1


[Site "https://www.chess.com"]

[Event "Titled Tuesday Blitz March 21 Late 2023"]
[White "Hartikainen, Jarmo"]
[Black "Tymrakiewicz, Rafal"]
[WhiteFideId "503134"]
[BlackFideId "1108832"]
[WhiteElo "2164"]
[BlackElo "2151"]
[Result "1-0"]
[Round "05"]
[TimeControl "180+2"]
[Date "2023.03.21"]
[WhiteClock "0:00:37"]
[BlackClock "0:00:12"]

1. e4 {[%clk 0:03:00]}  Nf6 {[%clk 0:03:00]} 2. e5 {[%clk 0:03:00]}  Nd5 {[%clk 0:03:00]} 3. Nf3 {[%clk 0:02:58]}  d6 {[%clk 0:03:00]} 4. Bc4 {[%clk 0:02:57]}  Nb6 {[%clk 0:03:00]} 5. Bxf7+ {[%clk 0:02:56]}  Kxf7 {[%clk 0:03:00]} 6. Ng5+ {[%clk 0:02:56]}  Kg8 {[%clk 0:02:44]} 7. e6 {[%clk 0:02:56]}  Qe8 {[%clk 0:02:17]} 8. Qf3 {[%clk 0:02:54]}  Bxe6 {[%clk 0:02:17]} 9. Nxe6 {[%clk 0:02:52]}  Nc6 {[%clk 0:02:09]} 10. Nxc7 {[%clk 0:02:50]}  Qd7 {[%clk 0:01:56]} 11. Nxa8 {[%clk 0:02:46]}  Nxa8 {[%clk 0:01:57]} 12. O-O {[%clk 0:02:45]}  g6 {[%clk 0:01:55]} 13. c3 {[%clk 0:02:44]}  Bg7 {[%clk 0:01:55]} 14. d4 {[%clk 0:02:44]}  h6 {[%clk 0:01:54]} 15. Qe4 {[%clk 0:02:33]}  Kh7 {[%clk 0:01:53]} 16. Re1 {[%clk 0:02:30]}  Rf8 {[%clk 0:01:42]} 17. Nd2 {[%clk 0:02:26]}  e5 {[%clk 0:01:37]} 18. dxe5 {[%clk 0:02:18]}  dxe5 {[%clk 0:01:34]} 19. Nf3 {[%clk 0:02:16]}  Nc7 {[%clk 0:01:26]} 20. Be3 {[%clk 0:02:13]}  Ne6 {[%clk 0:01:22]} 21. Rad1 {[%clk 0:02:06]}  Qf7 {[%clk 0:01:22]} 22. b4 {[%clk 0:01:57]}  a6 {[%clk 0:01:21]} 23. a4 {[%clk 0:01:57]}  Qf5 {[%clk 0:01:15]} 24. Bb6 {[%clk 0:01:36]}  Ng5 {[%clk 0:01:03]} 25. Qxf5 {[%clk 0:01:30]}  gxf5 {[%clk 0:00:57]} 26. Nxg5+ {[%clk 0:01:30]}  hxg5 {[%clk 0:00:57]} 27. Rd7 {[%clk 0:01:29]}  e4 {[%clk 0:00:51]} 28. b5 {[%clk 0:01:19]}  axb5 {[%clk 0:00:49]} 29. axb5 {[%clk 0:01:19]}  Ne5 {[%clk 0:00:49]} 30. Rxb7 {[%clk 0:01:17]}  Nd3 {[%clk 0:00:47]} 31. Ra1 {[%clk 0:01:12]}  Kg8 {[%clk 0:00:21]} 32. Bd4 {[%clk 0:01:06]}  Bxd4 {[%clk 0:00:19]} 33. cxd4 {[%clk 0:01:07]}  Rf7 {[%clk 0:00:19]} 34. Rxf7 {[%clk 0:00:56]}  Kxf7 {[%clk 0:00:20]} 35. b6 {[%clk 0:00:56]}  Nb4 {[%clk 0:00:18]} 36. b7 {[%clk 0:00:51]}  Nc6 {[%clk 0:00:18]} 37. Ra8 {[%clk 0:00:50]}  Ke6 {[%clk 0:00:18]} 38. Rc8 {[%clk 0:00:49]}  Nxd4 {[%clk 0:00:13]} 39. b8=Q {[%clk 0:00:48]}  Ne2+ {[%clk 0:00:13]} 40. Kf1 {[%clk 0:00:47]}  Nf4 {[%clk 0:00:13]} 41. Rc6+ {[%clk 0:00:39]}  Kd5 {[%clk 0:00:12]} 42. Qd6# {[%clk 0:00:37]} 1-0


[Site "https://www.chess.com"]

[Event "Titled Tuesday Blitz March 21 Late 2023"]
[White "Sanchez, Robert"]
[Black "Senft, Sean"]
[WhiteFideId "2034360"]
[BlackFideId "2044960"]
[WhiteElo "2153"]
[BlackElo "1989"]
[Result "0-1"]
[Round "05"]
[TimeControl "180+2"]
[Date "2023.03.21"]
[WhiteClock "0:02:41"]
[BlackClock "0:02:35"]

1. e4 {[%clk 0:03:00]}  e5 {[%clk 0:03:00]} 2. Nf3 {[%clk 0:03:00]}  Nc6 {[%clk 0:03:00]} 3. Bc4 {[%clk 0:03:00]}  Nf6 {[%clk 0:03:01]} 4. d3 {[%clk 0:02:59]}  Be7 {[%clk 0:02:59]} 5. O-O {[%clk 0:02:55]}  O-O {[%clk 0:02:59]} 6. c3 {[%clk 0:02:55]}  d6 {[%clk 0:02:58]} 7. Re1 {[%clk 0:02:53]}  Be6 {[%clk 0:02:58]} 8. Bxe6 {[%clk 0:02:49]}  fxe6 {[%clk 0:02:58]} 9. Qb3 {[%clk 0:02:49]}  Qd7 {[%clk 0:02:57]} 10. Ng5 {[%clk 0:02:46]}  d5 {[%clk 0:02:55]} 11. exd5 {[%clk 0:02:42]}  exd5 {[%clk 0:02:54]} 12. Nf3 {[%clk 0:02:42]}  Bd6 {[%clk 0:02:52]} 13. Na3 {[%clk 0:02:41]}  Kh8 {[%clk 0:02:50]} 14. Nb5 {[%clk 0:02:39]}  e4 {[%clk 0:02:49]} 15. dxe4 {[%clk 0:02:39]}  dxe4 {[%clk 0:02:49]} 16. Nxd6 {[%clk 0:02:40]}  exf3 {[%clk 0:02:42]} 17. Nxb7 {[%clk 0:02:40]}  Qg4 {[%clk 0:02:36]} 18. g3 {[%clk 0:02:41]}  Qh3 {[%clk 0:02:35]} 19. Bf4 {[%clk 0:02:41]}  Qg2# {[%clk 0:02:35]} 0-1


[Site "https://www.chess.com"]